fUST/lending_fUST_20250328
["ID","MTS","AMOUNT","RATE_DAILY","PERIOD"]
[356749655,1743100241012,-1676.053679,0.0003982,13]
[356749656,1743100241021,-1000.0,0.0003984,13]
[356749657,1743100241031,-1000.0,0.0003986,13]
[356749658,1743100241040,-1000.0,0.0003988,13]
[356749659,1743100241050,-151.0,0.000399,20]
[356749660,1743100241059,-151.0,0.000399,13]
[356749661,1743100241068,-1000.0,0.000399,13]
[356749662,1743100241077,-1000.0,0.0003992,13]
[356749663,1743100241087,-1000.0,0.0003994,13]
[356749664,1743100241096,-1000.0,0.0003996,13]
[356749665,1743100241106,-500.0,0.00039973,5]
[356749666,1743100241116,-500.0,0.00039973,5]
[356749667,1743100241126,-500.0,0.00039973,5]
[356749668,1743100241135,-574.23449242,0.00039973,5]
[356749669,1743100241145,-500.0,0.00039973,5]
[356749670,1743100241158,-500.0,0.00039973,5]
[356749671,1743100241167,-500.0,0.00039973,5]
[356749672,1743100241176,-103935.25724382,0.0003998,30]
[356749719,1743101432089,-172.863905,0.00013699,2]
[356749720,1743101432098,-300.0,0.00028,13]
[356749721,1743101432108,-382.0,0.000295,14]
[356749722,1743101432119,-500.0,0.00034869,120]
[356749723,1743101432128,-3000.0,0.00034869,120]
[356749724,1743101432137,-500.0,0.00035069,2]
[356749725,1743101432147,-500.0,0.0003589,2]
[356749726,1743101432157,-502.37,0.00038,120]
[356749727,1743101432166,-500.0,0.00039273,5]
[356749728,1743101432176,-500.0,0.00039273,5]
[356749729,1743101432185,-500.0,0.00039273,5]
[356749730,1743101432195,-500.0,0.00039273,5]
[356749731,1743101432204,-500.0,0.00039273,5]
[356749732,1743101432213,-500.0,0.00039273,5]
[356749733,1743101432222,-240.83729806,0.00039299,15]
[356749734,1743101432231,-500.0,0.00039299,15]
[356749735,1743101432241,-500.0,0.00039299,15]
[356749736,1743101432250,-500.0,0.00039299,15]
[356749737,1743101432260,-380.65780558,0.00039299,15]
[356749738,1743101432269,-500.0,0.00039299,15]
[356749739,1743101432278,-500.0,0.00039299,15]
[356749740,1743101432287,-500.0,0.00039299,15]
[356749741,1743101432297,-600.0,0.00039299,15]
[356749742,1743101432306,-500.0,0.00039299,15]
[356749743,1743101432315,-500.0,0.00039299,15]
[356749744,1743101432325,-603.934619,0.00039299,15]
[356749745,1743101432334,-186.13177907,0.00039299,15]
[356749746,1743101432344,-500.0,0.00039299,15]
[356749747,1743101432353,-500.0,0.00039299,15]
[356749748,1743101432362,-50257.17650457,0.000393,2]
[356749752,1743101437824,-25450.91051533,0.000393,2]
[356749769,1743101440188,-246291.9129801,0.000393,2]
[356749770,1743101440197,-4753.04,0.000395,30]
[356749771,1743101440207,-1570.8878235,0.0003978,15]
[356749772,1743101440217,-1889.16919104,0.000398,120]
[356749773,1743101440226,-5000.0,0.000398,40]
[356749774,1743101440238,-2082.75064873,0.00039972,120]
[356749775,1743101440247,-399.53795968,0.00039973,5]
[356749776,1743101440256,-500.0,0.00039973,5]
[356749777,1743101440265,-500.0,0.00039973,5]
[356749778,1743101440274,-500.0,0.00039973,5]
[356749779,1743101440283,-500.0,0.00039973,5]
[356749780,1743101440292,-500.0,0.00039973,5]
[356749781,1743101440301,-73419.76794851,0.0003998,30]
[356749782,1743101440312,-936.98429254,0.0003998,30]
[356749783,1743101440537,-117284.01210572,0.0003998,30]
[356749784,1743101440567,-4000.0,0.0003998,30]
[356749785,1743101441959,-300.0,0.0003998,30]
[356749811,1743101445934,-665.29999995,0.0003998,30]
[356749812,1743101446049,-1383.54627258,0.0003998,30]
[356749813,1743101448305,-264.2396,0.0003998,30]
[356749814,1743101463605,-181.31170915,0.00039979,5]
[356749836,1743102632553,-300.0,0.00028,13]
[356749838,1743102632563,-563.02311656,0.00029197,2]
[356749839,1743102632572,-152.0,0.00033013,2]
[356749840,1743102632581,-466.7375414,0.00033107,2]
[356749841,1743102632627,-11992.20066006,0.00033107,2]
[356749842,1743102632637,-400.0,0.0003312,2]
[356749843,1743102632646,-541.0,0.00033206,2]
[356749844,1743102632655,-150.0,0.00033206,2]
[356749845,1743102632665,-1915.0,0.00033206,2]
[356749846,1743102632675,-2238.0,0.00033206,2]
[356749847,1743102632684,-202.52397527,0.00034055,2]
[356749848,1743102632694,-486.71108339,0.000349,12]
[356749849,1743102632703,-486.71108311,0.00035072,12]
[356749850,1743102632713,-486.71108311,0.00035245,12]
[356749851,1743102632723,-486.71108311,0.00035417,12]
[356749852,1743102632733,-560.0,0.00035581,2]
[356749853,1743102632742,-486.71108311,0.0003559,12]
[356749854,1743102632751,-627.384699,0.00035724,2]
[356749855,1743102632760,-486.71108311,0.00035762,12]
[356749856,1743102632770,-500.0,0.0003589,2]
[356749857,1743102632780,-486.71108311,0.00035934,12]
[356749858,1743102632789,-486.71108311,0.00036107,13]
[356749859,1743102632799,-486.71108311,0.00036279,13]
[356749860,1743102632808,-486.71108311,0.00036452,13]
[356749861,1743102632818,-486.71108311,0.00036624,13]
[356749862,1743102632828,-1118.9269382,0.00036775,2]
[356749863,1743102632837,-486.71108311,0.00036797,13]
[356749864,1743102632847,-486.71108311,0.00036969,13]
[356749865,1743102632856,-486.71108311,0.00037141,13]
[356749866,1743102632867,-176.97316899,0.00037271,2]
[356749867,1743102632878,-223.02351842,0.00037272,2]
[356749868,1743102632887,-486.71108311,0.00037314,13]
[356749869,1743102632897,-268.86786726,0.0003737,15]
[356749870,1743102632907,-500.0,0.00037373,5]
[356749871,1743102632917,-500.0,0.00037373,5]
[356749872,1743102632927,-500.47915512,0.00037373,5]
[356749873,1743102632936,-500.0,0.00037373,5]
[356749874,1743102632949,-500.0,0.00037373,5]
[356749875,1743102632958,-365.56208421,0.00037373,5]
[356749876,1743102632968,-500.0,0.00037373,5]
[356749877,1743102632977,-500.0,0.00037373,5]
[356749878,1743102632986,-500.0,0.00037373,5]
[356749879,1743102632995,-614.71144397,0.00037373,5]
[356749880,1743102633006,-500.0,0.00037373,5]
[356749881,1743102633015,-500.34803748,0.00037373,5]
[356749882,1743102633024,-500.0,0.00037373,5]
[356749883,1743102633034,-502.66508552,0.00037373,5]
[356749884,1743102633044,-502.85385566,0.00037373,5]
[356749885,1743102633055,-500.0,0.00037373,5]
[356749886,1743102633065,-500.0,0.00037373,5]
[356749887,1743102633075,-5028.9222302,0.00037381,2]
[356749888,1743102633086,-486.71108311,0.00037486,13]
[356749889,1743102633096,-486.71108311,0.00037659,14]
[356749890,1743102633106,-486.71108311,0.00037831,14]
[356749891,1743102633117,-486.71108311,0.00038003,14]
[356749892,1743102633126,-486.71108311,0.00038176,14]
[356749893,1743102633136,-625.0,0.00038225,2]
[356749894,1743102633146,-486.71108311,0.00038348,14]
[356749895,1743102633157,-154.56135529,0.00038473,5]
[356749896,1743102633167,-500.0,0.00038473,5]
[356749897,1743102633177,-500.0,0.00038473,5]
[356749898,1743102633187,-500.0,0.00038473,5]
[356749899,1743102633197,-501.13828895,0.00038473,5]
[356749900,1743102633207,-500.0,0.00038473,5]
[356749901,1743102633216,-501.72322662,0.00038473,5]
[356749902,1743102633226,-500.0,0.00038473,5]
[356749903,1743102633236,-500.0,0.00038473,5]
[356749904,1743102633246,-500.0,0.00038473,5]
[356749905,1743102633256,-550.66760034,0.00038473,5]
[356749906,1743102633265,-500.0,0.00038473,5]
[356749907,1743102633275,-501.2295147,0.00038473,5]
[356749908,1743102633285,-500.0,0.00038473,5]
[356749909,1743102633295,-542.71469197,0.00038473,5]
[356749910,1743102633306,-500.0,0.00038473,5]
[356749911,1743102633315,-500.0,0.00038473,5]
[356749912,1743102633325,-500.0,0.00038473,5]
[356749913,1743102633335,-500.0,0.00038473,5]
[356749914,1743102633345,-501.28628172,0.00038473,5]
[356749915,1743102633355,-500.0,0.00038473,5]
[356749916,1743102633364,-500.0,0.00038473,5]
[356749917,1743102633374,-501.51568016,0.00038473,5]
[356749918,1743102633383,-500.0,0.00038473,5]
[356749919,1743102633393,-500.0,0.00038473,5]
[356749920,1743102633403,-601.04294409,0.00038473,5]
[356749921,1743102633413,-500.0,0.00038473,5]
[356749922,1743102633423,-500.0,0.00038473,5]
[356749923,1743102633433,-501.7795802,0.00038473,5]
[356749924,1743102633442,-501.44208951,0.00038473,5]
[356749925,1743102633453,-240732.45677335,0.000385,2]
[356749926,1743102633466,-161542.72939991,0.000385,2]
[356749927,1743102633505,-6333.67103448,0.000385,2]
[356749928,1743102633561,-1647.01493304,0.000385,2]
[356749929,1743102633672,-59379.03871712,0.000385,2]
[356749930,1743102633685,-110059.40943382,0.000385,2]
[356749931,1743102633697,-3314.29308636,0.000385,2]
[356749933,1743102640510,-400.0,0.00033206,2]
[356749934,1743102640519,-500.0,0.00037357,15]
[356749935,1743102640528,-2245.42679165,0.00037357,2]
[356749936,1743102640537,-500.0,0.00037357,15]
[356749937,1743102640547,-2245.42679165,0.00037357,2]
[356749938,1743102640556,-500.0,0.00037357,15]
[356749939,1743102640566,-500.0,0.00037357,15]
[356749940,1743102640575,-2245.42679165,0.00037357,2]
[356749941,1743102640584,-500.0,0.00037357,15]
[356749942,1743102640594,-2245.42679165,0.00037357,2]
[356749943,1743102640604,-467.10384656,0.00037357,15]
[356749944,1743102640613,-500.0,0.00037357,15]
[356749945,1743102640624,-2245.42679165,0.00037357,2]
[356749946,1743102640633,-2245.42679165,0.00037357,2]
[356749947,1743102640642,-500.0,0.00037357,15]
[356749949,1743102640653,-2245.42679165,0.00037357,2]
[356749950,1743102640662,-500.0,0.00037357,15]
[356749951,1743102640671,-2245.42679165,0.00037357,2]
[356749952,1743102640681,-2245.42679165,0.00037357,2]
[356749953,1743102640691,-500.0,0.00037357,15]
[356749954,1743102640700,-2245.42679165,0.00037357,2]
[356749955,1743102640710,-2245.42679165,0.00037357,2]
[356749956,1743102640720,-590.08866722,0.00037357,15]
[356749957,1743102640729,-2245.42679165,0.00037357,2]
[356749958,1743102640738,-2245.42679165,0.00037357,2]
[356749959,1743102640748,-2245.42679165,0.00037357,2]
[356749960,1743102640757,-2245.42679165,0.00037357,2]
[356749961,1743102640766,-2245.42679165,0.00037357,2]
[356749962,1743102640775,-2245.42679165,0.00037357,2]
[356749963,1743102640785,-2245.42679165,0.00037357,2]
[356749964,1743102640794,-2245.42679165,0.00037357,2]
[356749965,1743102640804,-2245.42679165,0.00037357,2]
[356749966,1743102640814,-2245.42679165,0.00037357,2]
[356749967,1743102640823,-2245.42679165,0.00037357,2]
[356749968,1743102640833,-2245.42679165,0.00037357,2]
[356749969,1743102640842,-2245.42679165,0.00037357,2]
[356749970,1743102640852,-2245.42679165,0.00037357,2]
[356749971,1743102640861,-2245.42679165,0.00037357,2]
[356749972,1743102640874,-2245.42679165,0.00037357,2]
[356749973,1743102640883,-2245.42679165,0.00037357,2]
[356749974,1743102640892,-2245.42679165,0.00037357,2]
[356749975,1743102640903,-2245.42679165,0.00037357,2]
[356749976,1743102640915,-2245.42679165,0.00037357,2]
[356749977,1743102640925,-2245.42679165,0.00037357,2]
[356749978,1743102640934,-2245.42679165,0.00037357,2]
[356749979,1743102640944,-2245.42679165,0.00037357,2]
[356749980,1743102640954,-2245.42679165,0.00037357,2]
[356749981,1743102640963,-2245.42679165,0.00037357,2]
[356749982,1743102640973,-2245.42679165,0.00037357,2]
[356749983,1743102640982,-2245.42679165,0.00037357,2]
[356749984,1743102640991,-2245.42679165,0.00037357,2]
[356749985,1743102641000,-2245.42679165,0.00037357,2]
[356749986,1743102641010,-2245.42679165,0.00037357,2]
[356749987,1743102641019,-2245.42679165,0.00037357,2]
[356749988,1743102641028,-2245.42679165,0.00037357,2]
[356749989,1743102641038,-2245.42679165,0.00037357,2]
[356749990,1743102641047,-2245.42679165,0.00037357,2]
[356749991,1743102641056,-2245.42679165,0.00037357,2]
[356749992,1743102641066,-2245.42679165,0.00037357,2]
[356749993,1743102641075,-2245.42679165,0.00037357,2]
[356749994,1743102641086,-2245.42679165,0.00037357,2]
[356749995,1743102641095,-2245.42679165,0.00037357,2]
[356749996,1743102641104,-2245.42679165,0.00037357,2]
[356749997,1743102641113,-2245.42679165,0.00037357,2]
[356749998,1743102641122,-2245.42679165,0.00037357,2]
[356749999,1743102641131,-2245.42679165,0.00037357,2]
[356750000,1743102641141,-2245.42679165,0.00037357,2]
[356750001,1743102641150,-2245.42679165,0.00037357,2]
[356750002,1743102641160,-2245.42679165,0.00037357,2]
[356750003,1743102641169,-2245.42679165,0.00037357,2]
[356750004,1743102641178,-2245.42679165,0.00037357,2]
[356750005,1743102641188,-841638.30663199,0.000385,2]
[356750006,1743102641197,-178.615968,0.000385,14]
[356750007,1743102641206,-178.615968,0.000385,14]
[356750008,1743102641215,-486.71108311,0.00038521,14]
[356750009,1743102641224,-176.97316898,0.00038586,2]
[356750010,1743102641233,-486.71108311,0.00038693,14]
[356750011,1743102641242,-173.6837737,0.000388,4]
[356750012,1743102641251,-486.71108311,0.00038866,14]
[356750013,1743102641261,-500.0,0.00038973,5]
[356750014,1743102641269,-500.97273484,0.00038973,5]
[356750015,1743102641278,-1128.0,0.00039,14]
[356750016,1743102641288,-151.0,0.00039,14]
[356750017,1743102641297,-486.71108311,0.00039038,14]
[356750018,1743102641306,-486.71108311,0.0003921,15]
[356750019,1743102641315,-486.71108311,0.00039383,15]
[356750020,1743102641324,-500.20337105,0.00039473,5]
[356750021,1743102641334,-269.97121968,0.00039473,2]
[356750022,1743102641343,-151.1786294,0.00039473,5]
[356750023,1743102641352,-151.0,0.000395,14]
[356750024,1743102641361,-151.0,0.000395,14]
[356750025,1743102641371,-216.434866,0.000395,14]
[356750026,1743102641380,-151.0,0.000395,14]
[356750027,1743102641389,-216.434866,0.000395,14]
[356750028,1743102641399,-151.0,0.000395,14]
[356750029,1743102641409,-225.770646,0.000395,14]
[356750030,1743102641418,-151.0,0.000395,14]
[356750031,1743102641426,-150.565823,0.0003955,2]
[356750032,1743102641435,-486.71108311,0.00039555,15]
[356750033,1743102641445,-18005.32129074,0.000397,2]
[356750034,1743102641455,-486.71108311,0.00039728,15]
[356750035,1743102641464,-183.321,0.00039796,56]
[356750036,1743102641473,-151.0,0.00039856,2]
[356750037,1743102641483,-600.0,0.00039856,2]
[356750038,1743102641493,-398787.02492135,0.0003987,30]
[356750039,1743102641503,-152.221674,0.0003987,14]
[356750040,1743102641513,-151.0,0.0003987,14]
[356750041,1743102641522,-151.0,0.0003987,14]
[356750042,1743102641532,-151.0,0.0003987,14]
[356750043,1743102641542,-201.548644,0.0003987,14]
[356750044,1743102641551,-201.548644,0.0003987,14]
[356750045,1743102641560,-151.0,0.0003987,14]
[356750046,1743102641570,-151.0,0.0003987,14]
[356750047,1743102641579,-182.821718,0.0003987,14]
[356750048,1743102641588,-182.821718,0.0003987,14]
[356750049,1743102641598,-2786.672552,0.0003987,2]
[356750050,1743102641607,-2786.672552,0.0003987,2]
[356750051,1743102641616,-155.250784,0.0003987,14]
[356750052,1743102641625,-1006.619974,0.0003987,14]
[356750053,1743102641635,-1006.619974,0.0003987,14]
[356750054,1743102641644,-454.60569,0.0003987,14]
[356750055,1743102641653,-454.60569,0.0003987,14]
[356750056,1743102641663,-151.0,0.0003987,14]
[356750057,1743102641673,-151.0,0.0003987,14]
[356750058,1743102641683,-151.0,0.0003987,14]
[356750059,1743102641692,-151.0,0.0003987,14]
[356750060,1743102641701,-216.434866,0.0003987,14]
[356750061,1743102641711,-151.0,0.0003987,14]
[356750062,1743102641720,-216.434866,0.0003987,14]
[356750063,1743102641730,-151.0,0.0003987,14]
[356750064,1743102641739,-151.0,0.0003987,14]
[356750065,1743102641748,-178.615968,0.0003987,14]
[356750066,1743102641758,-178.615968,0.0003987,14]
[356750067,1743102641767,-500.0,0.00039873,5]
[356750068,1743102641776,-3607.55612014,0.0003988,2]
[356750071,1743102643436,-7533.43354289,0.0003988,2]
[356750285,1743102646202,-341.79224971,0.0003988,2]
[356750288,1743102646215,-310517.21808726,0.0003988,2]
[356750290,1743102646225,-151.0,0.0003988,14]
[356750292,1743102646234,-151.0,0.0003988,14]
[356750294,1743102646244,-154.972528,0.0003988,14]
[356750296,1743102646254,-151.0,0.0003988,14]
[356750298,1743102646265,-571.431972,0.0003988,30]
[356750300,1743102646274,-175.84516,0.0003988,14]
[356750302,1743102646284,-151.0,0.0003988,14]
[356750304,1743102646294,-201.548644,0.0003988,14]
[356750306,1743102646304,-201.548644,0.0003988,14]
[356750308,1743102646314,-151.0,0.0003988,14]
[356750310,1743102646324,-151.0,0.0003988,14]
[356750312,1743102646334,-182.821718,0.0003988,14]
[356750314,1743102646343,-182.821718,0.0003988,14]
[356750316,1743102646353,-2786.672552,0.0003988,2]
[356750318,1743102646362,-2786.672552,0.0003988,2]
[356750320,1743102646372,-1006.619974,0.0003988,14]
[356750323,1743102646382,-1006.619974,0.0003988,14]
[356750325,1743102646392,-454.60569,0.0003988,14]
[356750327,1743102646402,-454.60569,0.0003988,14]
[356750329,1743102646412,-151.0,0.0003988,14]
[356750331,1743102646421,-151.0,0.0003988,14]
[356750333,1743102646431,-151.0,0.0003988,14]
[356750335,1743102646441,-151.0,0.0003988,14]
[356750337,1743102646450,-216.434866,0.0003988,14]
[356750339,1743102646460,-151.0,0.0003988,14]
[356750341,1743102646469,-216.434866,0.0003988,14]
[356750343,1743102646479,-151.268531,0.0003988,14]
[356750345,1743102646489,-151.0,0.0003988,14]
[356750347,1743102646498,-178.615968,0.0003988,14]
[356750349,1743102646508,-178.615968,0.0003988,14]
[356750351,1743102646518,-486.71108311,0.000399,15]
[356750353,1743102646528,-176.97316898,0.000399,2]
[356750355,1743102646538,-622.2,0.00039911,2]
[356750357,1743102646548,-645.2214,0.00039966,2]
[356750359,1743102646558,-413.15366899,0.00039973,5]
[356750361,1743102646568,-500.0,0.00039973,5]
[356750363,1743102646578,-500.0,0.00039973,5]
[356750365,1743102646587,-500.0,0.00039973,5]
[356750367,1743102646597,-500.0,0.00039973,5]
[356750369,1743102646606,-500.0,0.00039973,5]
[356750371,1743102646616,-160.29201365,0.00039973,5]
[356750373,1743102646625,-500.38352591,0.00039973,3]
[356750375,1743102646635,-500.0,0.00039973,5]
[356750377,1743102646644,-500.0,0.00039973,5]
[356750379,1743102646658,-650.0,0.00039973,5]
[356750381,1743102646669,-500.0,0.00039973,5]
[356750383,1743102646679,-500.0,0.00039973,5]
[356750386,1743102646690,-657.0,0.00039979,30]
[356750388,1743102646700,-1000.0,0.0003998,13]
[356750390,1743102646709,-1082.769484,0.0003998,13]
[356750392,1743102646719,-2002.02,0.0003999,120]
[356750394,1743102646729,-288.18045025,0.00039999,31]
[356750396,1743102646739,-627.35835693,0.00039999,31]
[356750398,1743102646749,-454.45429636,0.00039999,31]
[356750400,1743102646760,-2245.42679165,0.00039999,2]
[356750402,1743102646770,-2245.42679165,0.00039999,2]
[356750404,1743102646780,-2245.42679165,0.00039999,2]
[356750406,1743102646790,-2245.42679165,0.00039999,2]
[356750408,1743102646800,-2245.42679165,0.00039999,2]
[356750410,1743102646810,-2245.42679165,0.00039999,2]
[356750412,1743102646821,-2245.42679165,0.00039999,2]
[356750415,1743102646831,-2245.42679165,0.00039999,2]
[356750417,1743102646841,-640539.58080421,0.0004,60]
[356750422,1743102646882,-34798.0974474,0.0004,60]
[356750424,1743102646893,-8118.4,0.0004,60]
[356750426,1743102646905,-427100.8099749,0.0004,60]
[356750630,1743102724436,-196.4098005,0.00037356,2]
[356750632,1743103203654,2893.0,0.0001,2]
[356750661,1743103832869,-172.863905,0.00013699,2]
[356750662,1743103832879,-150.05432387,0.0002,7]
[356750663,1743103832889,-10028.68501488,0.0002479,2]
[356750664,1743103832898,-207.3724115,0.0003,10]
[356750665,1743103832907,-313.692349,0.00033701,2]
[356750666,1743103832916,-2200.0,0.00034097,7]
[356750667,1743103832926,-583.558,0.00034097,7]
[356750668,1743103832936,-500.0,0.0003589,2]
[356750669,1743103832945,-206.26802753,0.000359,12]
[356750670,1743103832956,-160.0,0.0003705,2]
[356750671,1743103832965,-160.0,0.00037069,2]
[356750672,1743103832974,-223.02351841,0.00037248,2]
[356750673,1743103832983,-643.06,0.00037338,3]
[356750674,1743103832993,-500.0,0.00037347,15]
[356750675,1743103833001,-1000.0,0.00037355,30]
[356750676,1743103833010,-1000.0,0.00037355,30]
[356750677,1743103833020,-1000.0,0.00037355,30]
[356750678,1743103833030,-1000.0,0.00037355,30]
[356750679,1743103833040,-1000.0,0.00037355,30]
[356750680,1743103833049,-1000.0,0.00037355,30]
[356750681,1743103833059,-1000.0,0.00037355,30]
[356750682,1743103833068,-1000.0,0.00037355,30]
[356750683,1743103833078,-1000.0,0.00037355,30]
[356750684,1743103833087,-1000.0,0.00037355,30]
[356750685,1743103833097,-1000.0,0.00037355,30]
[356750686,1743103833107,-1000.0,0.00037355,30]
[356750687,1743103833116,-1000.0,0.00037355,30]
[356750688,1743103833126,-1000.0,0.00037355,30]
[356750689,1743103833136,-1000.0,0.00037355,30]
[356750690,1743103833146,-1000.0,0.00037355,30]
[356750691,1743103833156,-796.78845137,0.00037355,30]
[356750692,1743103833166,-340.25623938,0.00037373,5]
[356750693,1743103833176,-500.0,0.00037373,5]
[356750694,1743103833185,-500.0,0.00037373,5]
[356750695,1743103833195,-500.0,0.00037373,5]
[356750696,1743103833205,-500.0,0.00037373,5]
[356750697,1743103833215,-500.0,0.00037373,5]
[356750698,1743103833225,-500.0,0.00037373,5]
[356750699,1743103833239,-500.0,0.00037373,5]
[356750700,1743103833249,-500.0,0.00037373,5]
[356750701,1743103833258,-500.0,0.00038851,7]
[356750702,1743103833268,-241.37836403,0.00039604,2]
[356750703,1743103833278,-151.0,0.00039745,2]
[356750704,1743103833288,-302.0,0.00039745,2]
[356750705,1743103833298,-600.0,0.00039745,2]
[356750706,1743103833309,-322000.0,0.00039769,2]
[356750707,1743103833319,-500.0,0.00039773,5]
[356750708,1743103833328,-500.0,0.00039773,5]
[356750709,1743103833338,-500.0,0.00039773,5]
[356750710,1743103833348,-500.0,0.00039773,5]
[356750711,1743103833358,-999.21123784,0.000398,2]
[356750712,1743103833367,-200.17761648,0.000399,2]
[356750713,1743103833377,-500.02455761,0.00039973,5]
[356750714,1743103833386,-500.0,0.00039973,5]
[356750715,1743103833396,-502.68915637,0.00039973,5]
[356750716,1743103833406,-502.31227996,0.00039973,5]
[356750717,1743103833416,-500.0,0.00039973,5]
[356750718,1743103833426,-500.0,0.00039973,5]
[356750719,1743103833435,-1000.0,0.0003998,13]
[356750720,1743103833445,-355.0,0.00039986,14]
[356750721,1743103833455,-355.0,0.00039986,14]
[356750722,1743103833464,-317.0,0.00039986,14]
[356750723,1743103833473,-355.0,0.00039986,14]
[356750724,1743103833484,-317.0,0.00039986,14]
[356750725,1743103833494,-355.0,0.00039986,14]
[356750726,1743103833503,-317.0,0.00039986,14]
[356750727,1743103833513,-317.0,0.00039986,14]
[356750728,1743103833523,-317.0,0.00039986,14]
[356750729,1743103833532,-355.0,0.00039986,14]
[356750730,1743103833542,-317.0,0.00039986,14]
[356750731,1743103833552,-357.00497026,0.00039986,14]
[356750732,1743103833562,-317.0,0.00039986,14]
[356750733,1743103833572,-428.70342401,0.00039986,14]
[356750734,1743103833581,-443.7860765,0.00039999,31]
[356750735,1743103833591,-362.1898502,0.00039999,31]
[356750736,1743103833600,-376.0,0.0004,120]
[356750737,1743103833610,-200.0,0.0004,120]
[356750738,1743103833620,-1000.0,0.0004,60]
[356750739,1743103833630,-2000.0,0.0004,15]
[356750740,1743103833640,-2000.0,0.0004,15]
[356750741,1743103833651,-2000.0,0.0004,15]
[356750742,1743103833661,-2000.0,0.0004,15]
[356750743,1743103833672,-16028.18443804,0.0004,30]
[356750744,1743103833714,-500.0,0.00037347,15]
[356750745,1743103833724,-500.0,0.00037347,2]
[356750746,1743103833733,-8958.91759063,0.0004,30]
[356750747,1743103833765,-500.0,0.00037347,2]
[356750748,1743103833776,-292.70039753,0.00037347,15]
[356750749,1743103833785,-500.0,0.00037347,2]
[356750750,1743103833795,-53456.93426929,0.0004,30]
[356750757,1743103838166,-500.0,0.00037347,2]
[356750758,1743103838175,-500.0,0.00037347,2]
[356750759,1743103838185,-500.0,0.00037347,2]
[356750760,1743103838194,-500.0,0.00037347,2]
[356750761,1743103838203,-500.0,0.00037347,2]
[356750762,1743103838213,-500.0,0.00037347,2]
[356750763,1743103838222,-500.0,0.00037347,2]
[356750764,1743103838235,-500.0,0.00037347,2]
[356750765,1743103838249,-37.2516881,0.00037347,2]
[356750766,1743103838260,-462.7483119,0.00037347,2]
[356750767,1743103838270,-500.0,0.00037347,2]
[356750768,1743103838279,-500.0,0.00037347,2]
[356750769,1743103838289,-500.0,0.00037347,2]
[356750770,1743103838298,-500.0,0.00037347,2]
[356750771,1743103838308,-500.0,0.00037347,2]
[356750772,1743103838317,-500.0,0.00037347,2]
[356750773,1743103838326,-649.99999999,0.00037347,2]
[356750774,1743103838336,-500.0,0.00037347,2]
[356750775,1743103838345,-500.0,0.00037347,2]
[356750776,1743103838354,-500.0,0.00037347,2]
[356750777,1743103838363,-398.68075462,0.00037347,2]
[356750778,1743103838375,-101.31924538,0.00037347,2]
[356750779,1743103838384,-500.0,0.00037347,2]
[356750780,1743103838394,-500.0,0.00037347,2]
[356750781,1743103838403,-500.0,0.00037347,2]
[356750782,1743103838412,-500.0,0.00037347,2]
[356750783,1743103838422,-500.0,0.00037347,2]
[356750784,1743103838431,-500.0,0.00037347,2]
[356750785,1743103838440,-500.0,0.00039999,2]
[356750786,1743103838450,-500.0,0.00039999,2]
[356750787,1743103838459,-500.0,0.00039999,2]
[356750788,1743103838470,-350.0,0.00039999,2]
[356750789,1743103838480,-21555.96370204,0.0004,30]
[356750790,1743103838490,-2438.29146238,0.0004,120]
[356750791,1743103838500,-6432.55806533,0.0004,15]
[356750796,1743103840556,-43567.44193467,0.0004,15]
[356750797,1743103840566,-1056.595472,0.0004,120]
[356750798,1743103840575,-1996.94709341,0.0004,120]
[356750799,1743103840585,-525.27587947,0.0004,120]